fUSD/lending_fUSD_20260218
["ID","MTS","AMOUNT","RATE_DAILY","PERIOD"]
[405924946,1771417850756,-2836.0,0.0001736,2]
[405924947,1771417850770,-350.0,0.00017366,2]
[405924948,1771417850780,-175.2871213,0.00017422,3]
[405924949,1771417850789,-841.0,0.00017534,2]
[405924950,1771417850798,-4000.0,0.00017534,2]
[405924951,1771417850807,-240.0,0.00017612,2]
[405924952,1771417850816,-160.0,0.0001768,2]
[405924953,1771417850825,-784.44122355,0.000177,2]
[405924954,1771417850834,-403.0,0.000177,5]
[405924955,1771417850843,-350.0,0.00017744,2]
[405924956,1771417850851,-350.0,0.00017792,2]
[405924957,1771417850861,-500.0,0.00017808,2]
[405924958,1771417850870,-841.0,0.00017808,2]
[405924959,1771417850879,-800.0,0.00017808,2]
[405924960,1771417850888,-250.0,0.00017808,20]
[405924961,1771417850897,-250.0,0.00017808,20]
[405924962,1771417850907,-250.0,0.00017808,20]
[405924963,1771417850915,-250.0,0.00017808,20]
[405924964,1771417850924,-250.0,0.00017808,20]
[405924965,1771417850933,-250.0,0.00017808,20]
[405924966,1771417850943,-250.0,0.00017808,20]
[405924967,1771417850952,-175.581631,0.00017808,20]
[405924968,1771417850960,-200.0,0.00017856,2]
[405924969,1771417850970,-1004.26991434,0.0001786,2]
[405924970,1771417850979,-500.0,0.00017863,2]
[405924971,1771417850988,-5008.1800114,0.000179,3]
[405924972,1771417850997,-25635.78322112,0.000179,2]
[405924973,1771417851006,-1570.8007341,0.000179,2]
[405924974,1771417851015,-500.0,0.000179,2]
[405924975,1771417851024,-500.0,0.000179,2]
[405924976,1771417851032,-500.0,0.000179,2]
[405924977,1771417851042,-500.0,0.000179,2]
[405924978,1771417851051,-500.0,0.000179,2]
[405924979,1771417851059,-500.0,0.000179,2]
[405924980,1771417851068,-500.0,0.000179,2]
[405924981,1771417851077,-500.0,0.000179,2]
[405924982,1771417851086,-500.0,0.000179,2]
[405924983,1771417851095,-500.0,0.000179,2]
[405924984,1771417851104,-500.0,0.000179,2]
[405924985,1771417851113,-500.0,0.000179,2]
[405924986,1771417851122,-500.0,0.000179,2]
[405924987,1771417851130,-500.0,0.000179,2]
[405924988,1771417851139,-500.0,0.000179,2]
[405924989,1771417851148,-500.0,0.000179,2]
[405924990,1771417851157,-500.0,0.000179,2]
[405924991,1771417851166,-500.0,0.000179,2]
[405924992,1771417851175,-500.0,0.000179,2]
[405924993,1771417851183,-500.0,0.000179,2]
[405924994,1771417851193,-500.0,0.000179,2]
[405924995,1771417851202,-500.0,0.000179,2]
[405924996,1771417851211,-500.0,0.000179,2]
[405924997,1771417851220,-500.0,0.000179,2]
[405924998,1771417851229,-500.0,0.000179,2]
[405924999,1771417851239,-500.0,0.000179,2]
[405925000,1771417851248,-500.0,0.000179,2]
[405925001,1771417851257,-500.0,0.000179,2]
[405925002,1771417851266,-500.0,0.000179,2]
[405925003,1771417851275,-500.0,0.000179,2]
[405925004,1771417851284,-500.0,0.000179,2]
[405925005,1771417851294,-500.0,0.000179,2]
[405925006,1771417851303,-500.0,0.000179,2]
[405925007,1771417851312,-500.0,0.000179,2]
[405925008,1771417851322,-500.0,0.000179,2]
[405925009,1771417851331,-500.0,0.000179,2]
[405925010,1771417851340,-500.0,0.000179,2]
[405925011,1771417851349,-500.0,0.000179,2]
[405925012,1771417851357,-500.0,0.000179,2]
[405925013,1771417851364,-500.0,0.000179,2]
[405925014,1771417851372,-500.0,0.000179,2]
[405925015,1771417851381,-500.0,0.000179,2]
[405925016,1771417851389,-500.0,0.000179,2]
[405925017,1771417851398,-500.0,0.000179,2]
[405925018,1771417851407,-500.0,0.000179,2]
[405925019,1771417851416,-500.0,0.000179,2]
[405925020,1771417851425,-500.0,0.000179,2]
[405925021,1771417851435,-500.0,0.000179,2]
[405925022,1771417851443,-472.68340978,0.000179,2]
[405925023,1771417851452,-500.0,0.00017918,2]
[405925024,1771417851461,-150.0,0.00017947,2]
[405925025,1771417851470,-200.0,0.00017958,3]
[405925026,1771417851479,-200.0,0.00017958,3]
[405925027,1771417851488,-200.0,0.00017958,3]
[405925028,1771417851497,-200.0,0.00017958,3]
[405925029,1771417851507,-245.2765902,0.00017958,3]
[405925030,1771417851516,-500.0,0.00017958,3]
[405925031,1771417851528,-500.0,0.00017958,3]
[405925032,1771417851542,-500.0,0.00017958,3]
[405925033,1771417851550,-500.0,0.00017958,3]
[405925034,1771417851558,-151.0,0.00017958,3]
[405925035,1771417851569,-500.0,0.00017958,3]
[405925036,1771417851578,-151.0,0.00017958,3]
[405925037,1771417851587,-500.0,0.00017958,3]
[405925038,1771417851597,-151.0,0.00017958,3]
[405925039,1771417851607,-500.0,0.00017958,3]
[405925040,1771417851616,-151.0,0.00017958,3]
[405925041,1771417851626,-500.0,0.00017958,3]
[405925042,1771417851635,-151.0,0.00017958,3]
[405925043,1771417851645,-500.0,0.00017958,3]
[405925044,1771417851654,-500.0,0.00017958,3]
[405925045,1771417851663,-151.0,0.00017958,3]
[405925046,1771417851673,-500.0,0.00017958,3]
[405925047,1771417851682,-500.0,0.00017958,3]
[405925048,1771417851692,-500.0,0.00017958,3]
[405925049,1771417851701,-151.0,0.00017958,3]
[405925050,1771417851711,-500.0,0.00017958,3]
[405925051,1771417851720,-151.0,0.00017958,3]
[405925052,1771417851729,-500.0,0.00017958,3]
[405925053,1771417851738,-151.0,0.00017958,3]
[405925054,1771417851747,-500.0,0.00017958,3]
[405925055,1771417851757,-151.0,0.00017958,3]
[405925056,1771417851765,-500.0,0.00017958,3]
[405925057,1771417851772,-151.0,0.00017958,3]
[405925058,1771417851780,-500.0,0.00017958,3]
[405925059,1771417851787,-500.0,0.00017958,3]
[405925060,1771417851795,-500.0,0.00017958,3]
[405925061,1771417851803,-500.0,0.00017958,3]
[405925062,1771417851812,-500.0,0.00017958,3]
[405925063,1771417851820,-504.510834,0.00017958,3]
[405925064,1771417851829,-506.0,0.00017959,3]
[405925065,1771417851837,-500.0,0.0001797,2]
[405925066,1771417851846,-500.0,0.0001797,2]
[405925067,1771417851855,-1000.0,0.0001797,2]
[405925068,1771417851864,-500.0,0.0001797,2]
[405925069,1771417851873,-500.0,0.0001797,2]
[405925070,1771417851882,-1000.0,0.0001797,2]
[405925071,1771417851892,-500.0,0.0001797,2]
[405925072,1771417851901,-1000.0,0.0001797,2]
[405925073,1771417851910,-900.0,0.0001797,2]
[405925074,1771417851919,-1000.0,0.0001797,2]
[405925075,1771417851928,-1000.0,0.0001797,2]
[405925076,1771417851937,-1000.0,0.0001797,2]
[405925077,1771417851946,-1602.42010233,0.0001797,2]
[405925078,1771417851955,-500.0,0.00017972,2]
[405925079,1771417851964,-2078.03494059,0.0001799,2]
[405925080,1771417851973,-183.30982713,0.0001799,2]
[405925081,1771417851982,-83793.8138405,0.00017998,2]
[405925082,1771417851991,-1149.4383344,0.00017998,2]
[405925083,1771417852000,-66896.3626715,0.00017998,2]
[405925084,1771417852009,-22804.125271,0.00017998,2]
[405925085,1771417852018,-560.87669946,0.00017999,2]
[405925086,1771417852027,-155.0,0.00017999,2]
[405925087,1771417852036,-976.2,0.00017999,2]
[405925088,1771417852045,-976.2,0.00017999,2]
[405925089,1771417852054,-976.2,0.00017999,2]
[405925090,1771417852063,-976.2,0.00017999,2]
[405925091,1771417852072,-976.2,0.00017999,2]
[405925092,1771417852081,-976.2,0.00017999,2]
[405925093,1771417852090,-976.28011377,0.00017999,2]
[405925094,1771417852099,-1143.08,0.00017999,2]
[405925095,1771417852108,-1143.08,0.00017999,2]
[405925096,1771417852117,-1143.08,0.00017999,2]
[405925097,1771417852126,-1143.08,0.00017999,2]
[405925098,1771417852135,-1143.08,0.00017999,2]
[405925099,1771417852144,-1143.08,0.00017999,2]
[405925100,1771417852153,-1143.08802075,0.00017999,2]
[405925101,1771417852162,-608.53,0.00017999,2]
[405925102,1771417852171,-608.53,0.00017999,2]
[405925103,1771417852180,-608.53,0.00017999,2]
[405925104,1771417852189,-608.53,0.00017999,2]
[405925105,1771417852198,-608.53,0.00017999,2]
[405925106,1771417852207,-608.53,0.00017999,2]
[405925107,1771417852216,-608.60630866,0.00017999,2]
[405925108,1771417852225,-1179.65,0.00017999,2]
[405925109,1771417852235,-1179.65,0.00017999,2]
[405925110,1771417852243,-1179.65,0.00017999,2]
[405925111,1771417852257,-1179.65,0.00017999,2]
[405925112,1771417852267,-1179.65,0.00017999,2]
[405925113,1771417852276,-1179.65,0.00017999,2]
[405925114,1771417852285,-1179.68764413,0.00017999,2]
[405925115,1771417852294,-300.0,0.00017999,2]
[405925116,1771417852303,-666.0,0.00017999,2]
[405925117,1771417852315,-294.37058652,0.00017999,2]
[405925118,1771417852324,-150.0,0.00017999,2]
[405925119,1771417852333,-4940666.09945501,0.00018,2]
[405925120,1771417852343,-150.0,0.00018,7]
[405925121,1771417852352,-1258.65,0.00018,2]
[405925122,1771417852361,-199.63,0.00018,8]
[405925123,1771417852370,-47371.0,0.00018,2]
[405925124,1771417852379,-192.0,0.00018,2]
[405925125,1771417852388,-152.0,0.00018,2]
[405925126,1771417852397,-156.0,0.00018,2]
[405925127,1771417852406,-153.0,0.00018,2]
[405925128,1771417852416,-152.0,0.00018,2]
[405925129,1771417852425,-156.0,0.00018,2]
[405925130,1771417852434,-153.0,0.00018,2]
[405925131,1771417852444,-152.0,0.00018,2]
[405925132,1771417852453,-156.0,0.00018,2]
[405925133,1771417852462,-156.0,0.00018,2]
[405925134,1771417852471,-1508.0,0.00018,2]
[405925135,1771417852480,-276.0,0.00018,2]
[405925136,1771417852489,-159.0,0.00018,2]
[405925137,1771417852499,-159.0,0.00018,2]
[405925138,1771417852508,-1508.0,0.00018,2]
[405925139,1771417852518,-159.0,0.00018,2]
[405925140,1771417852530,-1508.0,0.00018,2]
[405925141,1771417852540,-159.0,0.00018,2]
[405925142,1771417852549,-1508.0,0.00018,2]
[405925143,1771417852559,-1508.0,0.00018,2]
[405925144,1771417852568,-163.59635417,0.00018,2]
[405925145,1771417852578,-1508.0,0.00018,2]
[405925146,1771417852587,-1508.0,0.00018,2]
[405925147,1771417852597,-1508.0,0.00018,2]
[405925148,1771417852607,-1508.0,0.00018,2]
[405925149,1771417852616,-1508.0,0.00018,2]
[405925150,1771417852625,-1508.0,0.00018,2]
[405925151,1771417852635,-983.60202628,0.00018,2]
[405925152,1771417852645,-240.30578432,0.00018,2]
[405925153,1771417852654,-200.0,0.00018,2]
[405925154,1771417852663,-200.0,0.00018,2]
[405925155,1771417852673,-25000.0,0.00018,3]
[405925156,1771417852683,-200.0,0.00018,2]
[405925157,1771417852692,-672035.92370581,0.00018,2]
[405925158,1771417853148,-570.14988775,0.00018,2]
[405925159,1771417853213,-495.9299997,0.00018,2]
[405925160,1771417853224,-1333.24,0.00018,2]
[405925161,1771417853255,-2590.96327258,0.00018,2]
[405925162,1771418469252,1607.815,6e-05,2]
[405925163,1771418480582,164.04,0.0001905,120]
[405925164,1771418649978,150.0,0.00011233,120]
[405925165,1771418742161,166.0,6.561e-05,2]
[405925169,1771419031406,-355.00000001,7.7e-05,2]
[405925170,1771419031515,-44.99999999,7.7e-05,2]
[405925171,1771419031525,-215.0,7.7e-05,2]
[405925172,1771419031534,-250.0,7.735e-05,2]
[405925173,1771419031543,-152.96000001,7.768e-05,2]
[405925174,1771419031555,-97.03999999,7.768e-05,2]
[405925175,1771419031564,-500.0,7.77e-05,2]
[405925176,1771419031574,-800.0,7.8e-05,2]
[405925177,1771419031583,-200.0,7.801e-05,2]
[405925178,1771419031593,-1300.0,7.9e-05,2]
[405925179,1771419031602,-1083.32873961,8e-05,2]
[405925180,1771419031613,-616.67126039,8e-05,2]
[405925181,1771419031622,-194.0,8.203e-05,2]
[405925183,1771419031631,-204.304563,8.219e-05,2]
[405925185,1771419031640,-500.0,8.247e-05,2]
[405925186,1771419031650,-150.0,8.247e-05,2]
[405925187,1771419031659,-432.0,8.27e-05,2]
[405925188,1771419031667,-560.87669946,8.273e-05,2]
[405925189,1771419031676,-300.0,8.273e-05,2]
[405925190,1771419031685,-1200.0,8.273e-05,2]
[405925191,1771419031694,-9496.74507842,8.274e-05,2]
[405925192,1771419031705,-6892.8,8.274e-05,2]
[405925199,1771419037519,-500.0,8.273e-05,2]
[405925201,1771419037528,-500.0,8.273e-05,2]
[405925202,1771419037537,-500.0,8.273e-05,2]
[405925203,1771419037547,-500.0,8.273e-05,2]
[405925204,1771419037556,-35.05314332,8.273e-05,2]
[405925205,1771419037578,-464.94685668,8.273e-05,2]
[405925206,1771419037588,-500.0,8.273e-05,2]
[405925207,1771419037597,-500.0,8.273e-05,2]
[405925208,1771419037606,-500.0,8.273e-05,2]
[405925209,1771419037616,-500.0,8.273e-05,2]
[405925210,1771419037625,-500.0,8.273e-05,2]
[405925211,1771419037634,-500.0,8.273e-05,2]
[405925212,1771419037643,-500.0,8.273e-05,2]
[405925213,1771419037651,-500.0,8.273e-05,2]
[405925214,1771419037660,-500.0,8.273e-05,2]
[405925215,1771419037670,-500.0,8.273e-05,2]
[405925216,1771419037680,-500.0,8.273e-05,2]
[405925217,1771419037689,-223.00314332,8.273e-05,2]
[405925218,1771419037708,-276.99685668,8.273e-05,2]
[405925219,1771419037717,-500.0,8.273e-05,2]
[405925220,1771419037726,-500.0,8.273e-05,2]
[405925221,1771419037735,-500.0,8.273e-05,2]
[405925222,1771419037744,-500.0,8.273e-05,2]
[405925223,1771419037754,-500.0,8.273e-05,2]
[405925224,1771419037763,-500.0,8.273e-05,2]
[405925225,1771419037772,-500.0,8.273e-05,2]
[405925226,1771419037782,-500.0,8.273e-05,2]
[405925227,1771419037796,-500.0,8.273e-05,2]
[405925228,1771419037807,-500.0,8.273e-05,2]
[405925229,1771419037816,-500.0,8.273e-05,2]
[405925230,1771419037825,-500.0,8.273e-05,2]
[405925231,1771419037835,-500.0,8.273e-05,2]
[405925232,1771419037845,-500.0,8.273e-05,2]
[405925233,1771419037854,-3483610.45492158,8.274e-05,2]
[405925234,1771419037864,-462.0,8.283e-05,2]
[405925235,1771419037874,-2887.40769396,8.283e-05,2]
[405925236,1771419037883,-337.0,8.29e-05,2]
[405925237,1771419037893,-351.69343799,8.302e-05,2]
[405925238,1771419037903,-1113.546,8.306e-05,2]
[405925239,1771419037916,-180.591,8.306e-05,2]
[405925241,1771419037925,-174.97106768,8.306e-05,2]
[405925243,1771419037935,-500.0,8.373e-05,2]
[405925245,1771419037943,-150.0,8.373e-05,2]
[405925247,1771419037954,-1296.406,8.375e-05,2]
[405925249,1771419037963,-150.0,8.456e-05,2]
[405925251,1771419037973,-150.0,8.456e-05,2]
[405925252,1771419037983,-150.0,8.456e-05,2]
[405925254,1771419037993,-150.0,8.456e-05,2]
[405925256,1771419038002,-500.0,8.456e-05,2]
[405925258,1771419038011,-150.0,8.456e-05,2]
[405925260,1771419038021,-150.0,8.456e-05,2]
[405925262,1771419038030,-500.0,8.456e-05,2]
[405925264,1771419038040,-150.0,8.456e-05,2]
[405925266,1771419038050,-150.0,8.456e-05,2]
[405925268,1771419038059,-500.0,8.456e-05,2]
[405925270,1771419038069,-150.0,8.456e-05,2]
[405925272,1771419038078,-150.0,8.456e-05,2]
[405925274,1771419038088,-150.0,8.456e-05,2]
[405925276,1771419038097,-167.64893257,8.456e-05,2]
[405925278,1771419038106,-150.0,8.456e-05,2]
[405925280,1771419038116,-150.0,8.456e-05,2]
[405925282,1771419038125,-500.0,8.456e-05,2]
[405925284,1771419038134,-150.0,8.456e-05,2]
[405925286,1771419038144,-500.0,8.456e-05,2]
[405925288,1771419038153,-500.0,8.456e-05,2]
[405925290,1771419038162,-150.0,8.456e-05,2]
[405925292,1771419038174,-500.0,8.456e-05,2]
[405925294,1771419038184,-1573.0,8.456e-05,2]
[405925296,1771419038194,-250.0,8.47e-05,2]
[405925298,1771419038204,-553.95,8.474e-05,2]
[405925300,1771419038213,-500.0,8.475e-05,2]
[405925302,1771419038222,-150.0,8.511e-05,2]
[405925305,1771419038232,-150.0,8.511e-05,2]
[405925307,1771419038242,-150.0,8.511e-05,2]
[405925309,1771419038251,-150.0,8.511e-05,2]
[405925311,1771419038264,-500.0,8.511e-05,2]
[405925313,1771419038273,-150.0,8.511e-05,2]
[405925315,1771419038282,-500.0,8.511e-05,2]
[405925317,1771419038292,-150.0,8.511e-05,2]
[405925319,1771419038301,-150.0,8.511e-05,2]
[405925321,1771419038310,-500.0,8.511e-05,2]
[405925323,1771419038319,-150.0,8.511e-05,2]
[405925324,1771419038328,-150.0,8.511e-05,2]
[405925325,1771419038338,-150.0,8.511e-05,2]
[405925326,1771419038347,-150.0,8.511e-05,2]
[405925327,1771419038356,-150.0,8.511e-05,2]
[405925328,1771419038366,-447.22239799,8.511e-05,2]
[405925329,1771419038375,-500.0,8.511e-05,2]
[405925330,1771419038384,-500.0,8.511e-05,2]
[405925331,1771419038394,-150.0,8.511e-05,2]
[405925332,1771419038403,-500.0,8.511e-05,2]
[405925333,1771419038413,-1573.0,8.511e-05,2]
[405925334,1771419038423,-1000.0,8.526e-05,2]
[405925335,1771419038433,-5000.0,8.547e-05,2]
[405925336,1771419038442,-5000.0,8.547e-05,2]
[405925337,1771419038451,-5000.0,8.547e-05,2]
[405925338,1771419038461,-5000.0,8.547e-05,2]
[405925339,1771419038470,-5000.0,8.547e-05,2]
[405925340,1771419038480,-500.0,8.553e-05,2]
[405925341,1771419038489,-230.2407722,8.566e-05,2]
[405925342,1771419038499,-163.0,8.566e-05,2]
[405925343,1771419038509,-200.0,8.566e-05,2]
[405925344,1771419038518,-150.0,8.566e-05,2]
[405925345,1771419038527,-619.0,8.566e-05,2]
[405925346,1771419038537,-202.10513054,8.566e-05,2]
[405925347,1771419038547,-212.0,8.566e-05,2]
[405925348,1771419038557,-200.0,8.566e-05,2]
[405925349,1771419038566,-200.0,8.566e-05,2]
[405925350,1771419038575,-297.0,8.566e-05,2]
[405925351,1771419038585,-200.0,8.566e-05,2]
[405925352,1771419038594,-150.0,8.566e-05,2]
[405925353,1771419038603,-150.0,8.566e-05,2]
[405925354,1771419038613,-150.0,8.566e-05,2]
[405925355,1771419038623,-150.0,8.566e-05,2]
[405925356,1771419038632,-500.0,8.566e-05,2]
[405925357,1771419038642,-500.0,8.566e-05,2]
[405925358,1771419038651,-150.0,8.566e-05,2]
[405925359,1771419038661,-500.0,8.566e-05,2]
[405925360,1771419038673,-1573.0,8.566e-05,2]
[405925361,1771419038682,-292.0,8.62e-05,2]
[405925362,1771419038692,-150.0,8.62e-05,2]
[405925363,1771419038703,-227.89892486,8.62e-05,2]
[405925364,1771419038719,-150.0,8.62e-05,2]
[405925365,1771419038729,-150.0,8.62e-05,2]
[405925366,1771419038739,-500.0,8.62e-05,2]
[405925367,1771419038752,-414.0,8.62e-05,2]
[405925368,1771419038768,-150.0,8.62e-05,2]
[405925369,1771419038778,-500.0,8.62e-05,2]
[405925370,1771419038788,-1573.0,8.62e-05,2]
[405925371,1771419038798,-32853.2111,8.649e-05,2]
[405925372,1771419038808,-10000.0,8.649e-05,2]
[405925373,1771419038818,-407.00780979,8.667e-05,2]
[405925374,1771419038828,-150.0,8.675e-05,2]
[405925375,1771419038838,-150.0,8.675e-05,2]
[405925376,1771419038848,-150.0,8.675e-05,2]
[405925377,1771419038858,-500.0,8.675e-05,2]
[405925378,1771419038868,-150.0,8.675e-05,2]
[405925379,1771419038878,-500.0,8.675e-05,2]
[405925380,1771419038891,-1573.0,8.675e-05,2]
[405925381,1771419038901,-250.0,8.73e-05,2]
[405925382,1771419038915,-250.0,8.73e-05,2]
[405925383,1771419039138,-196.0,8.73e-05,2]
[405925384,1771419039148,-500.0,8.73e-05,2]
[405925385,1771419039158,-250.0,8.73e-05,2]
[405925386,1771419039169,-500.0,8.73e-05,2]
[405925387,1771419039180,-1573.0,8.73e-05,2]
[405925388,1771419039189,-553.95,8.748e-05,2]
[405925389,1771419039199,-500.0,8.785e-05,2]
[405925390,1771419039208,-500.0,8.785e-05,2]
[405925391,1771419039218,-1573.0,8.785e-05,2]
[405925393,1771419039227,-500.0,8.84e-05,2]
[405925394,1771419039237,-500.0,8.84e-05,2]
[405925395,1771419039246,-1573.0,8.84e-05,2]
[405925396,1771419039256,-500.0,8.894e-05,2]
[405925397,1771419039265,-328.88490305,8.894e-05,2]
[405925398,1771419039275,-1573.0,8.894e-05,2]
[405925399,1771419039285,-423.0,8.949e-05,2]
[405925400,1771419039295,-1573.0,8.949e-05,2]
[405925401,1771419039305,-1573.0,9.004e-05,2]
[405925402,1771419039314,-553.95,9.022e-05,2]
[405925403,1771419039324,-1573.0,9.059e-05,2]
[405925404,1771419039334,-420.0,9.1e-05,2]
[405925405,1771419039343,-1680.0,9.1e-05,2]
[405925406,1771419039353,-1573.0,9.114e-05,2]
[405925407,1771419039362,-1573.0,9.168e-05,2]
[405925408,1771419039371,-255.0,9.21e-05,2]
[405925409,1771419039380,-1573.0,9.223e-05,2]
[405925410,1771419039389,-1573.0,9.278e-05,2]
[405925411,1771419039399,-553.95,9.296e-05,2]
[405925412,1771419039408,-1573.0,9.333e-05,2]
[405925413,1771419039417,-1573.0,9.388e-05,2]
[405925414,1771419039427,-1573.0,9.442e-05,2]
[405925415,1771419039436,-1573.0,9.497e-05,2]
[405925416,1771419039445,-1573.0,9.552e-05,2]
[405925417,1771419039454,-333.11,9.552e-05,2]
[405925418,1771419039464,-553.95,9.57e-05,2]
[405925419,1771419039474,-1000.0,9.592e-05,2]
[405925420,1771419039483,-1573.0,9.607e-05,2]
[405925421,1771419039493,-1573.0,9.661e-05,2]
[405925422,1771419039502,-1581.0,9.716e-05,2]
[405925423,1771419039511,-554.00615053,9.844e-05,2]
[405925424,1771419039521,-151.0,0.0001,2]
[405925425,1771419039532,-151.0,0.0001,2]
[405925426,1771419039541,-151.0,0.0001,2]
[405925427,1771419039551,-151.0,0.0001,2]
[405925428,1771419039560,-151.0,0.0001,2]
[405925429,1771419039569,-151.0,0.0001,2]
[405925430,1771419039579,-151.0,0.0001,2]
[405925431,1771419039588,-151.0,0.0001,2]
[405925432,1771419039597,-151.0,0.0001,2]
[405925433,1771419039606,-151.0,0.0001,2]
[405925434,1771419039616,-151.0,0.0001,2]
[405925435,1771419039626,-151.0,0.0001,2]
[405925436,1771419039635,-151.0,0.0001,2]
[405925437,1771419039645,-151.0,0.0001,2]
[405925438,1771419039655,-151.0,0.0001,2]
[405925439,1771419039664,-151.0,0.0001,2]
[405925440,1771419039674,-151.0,0.0001,2]
[405925441,1771419039683,-151.0,0.0001,2]
[405925442,1771419039693,-151.0,0.0001,2]
[405925443,1771419039702,-151.0,0.0001,2]
[405925444,1771419039712,-151.0,0.0001,2]
[405925445,1771419039721,-151.0,0.0001,2]
[405925446,1771419039731,-151.0,0.0001,2]
[405925447,1771419039740,-151.0,0.0001,2]
[405925448,1771419039750,-151.0,0.0001,2]
[405925449,1771419039759,-151.0,0.0001,2]
[405925450,1771419039768,-151.0,0.0001,2]
[405925451,1771419039778,-151.0,0.0001,2]
[405925452,1771419039787,-151.0,0.0001,2]
[405925453,1771419039797,-151.0,0.0001,2]
[405925454,1771419039806,-151.0,0.0001,2]
[405925455,1771419039816,-151.0,0.0001,2]
[405925456,1771419039825,-151.0,0.0001,2]
[405925457,1771419039835,-151.0,0.0001,2]
[405925458,1771419039844,-151.0,0.0001,2]
[405925459,1771419039854,-151.0,0.0001,2]
[405925460,1771419039864,-151.0,0.0001,2]
[405925461,1771419039873,-151.0,0.0001,2]
[405925462,1771419039882,-151.0,0.0001,2]
[405925463,1771419039892,-151.0,0.0001,2]
[405925464,1771419039902,-175.27847489,0.0001,2]
[405925465,1771419039911,-1889.54156641,0.0001,2]
[405925466,1771419039921,-1889.54156641,0.0001,2]
[405925467,1771419039933,-2351.0,0.0001001,2]
[405925468,1771419039943,-587.0,0.0001001,2]
[405925469,1771419039952,-433.0,0.00010131,2]
[405925470,1771419039962,-317.85855574,0.00010174,2]
[405925471,1771419039972,-245.86778969,0.00010367,2]
[405925472,1771419039981,-500.0,0.00010367,2]
[405925473,1771419039991,-500.0,0.00010367,2]
[405925474,1771419040001,-500.0,0.00010367,2]
[405925475,1771419040011,-500.0,0.00010367,2]
[405925476,1771419040021,-307.32831336,0.00010367,2]
[405925477,1771419040030,-157.29853366,0.00010367,2]
[405925478,1771419040040,-500.0,0.00010367,2]
[405925479,1771419040050,-500.92647612,0.00010367,2]
[405925480,1771419040060,-500.0,0.00010367,2]
[405925481,1771419040069,-167.33946284,0.00010367,2]
[405925482,1771419040078,-500.0,0.00010367,2]
[405925483,1771419040087,-500.0,0.00010367,2]
[405925484,1771419040097,-9999.99,0.00010475,2]
[405925485,1771419040106,-150.99,0.00010475,2]
[405925486,1771419040115,-1000.0,0.00010657,2]
[405925487,1771419040126,-1582.1457329,0.000109,2]
[405925488,1771419040136,-2100.0,0.000109,3]
[405925489,1771419040146,-2251.5658334,0.000109,2]
[405925490,1771419040156,-2251.56583335,0.000109,2]
[405925491,1771419040167,-1000.0,0.00010915,2]
[405925493,1771419040176,-1000.0,0.00010915,2]
[405925495,1771419040186,-1000.0,0.00010915,2]
[405925496,1771419040195,-1000.0,0.00010915,2]
[405925497,1771419040204,-150.0,0.00010959,2]
[405925498,1771419040213,-150.0,0.00010959,2]
[405925499,1771419040224,-166.66,0.00010959,2]
[405925500,1771419040233,-2251.56583335,0.00010959,2]
[405925501,1771419040242,-1000.0,0.00010999,2]
[405925502,1771419040252,-3292.0,0.00011011,2]